fUSD/lending_fUSD_20251013
["ID","MTS","AMOUNT","RATE_DAILY","PERIOD"]
[391089694,1760320243566,-2096.99162668,0.00019,2]
[391089695,1760320243575,-300.0,0.00019,2]
[391089696,1760320243585,-311.20790608,0.00019,2]
[391089697,1760320243594,-1525.7600924,0.00019027,2]
[391089698,1760320243603,-154.77,0.00019135,2]
[391089699,1760320243612,-3742.16,0.00019136,2]
[391089700,1760320243622,-161.0422625,0.0001915,2]
[391089701,1760320243631,-500.0,0.00019178,2]
[391089702,1760320243640,-22107.34,0.00019178,2]
[391089703,1760320243650,-2413.87,0.00019178,2]
[391089704,1760320243659,-500.0,0.00019233,2]
[391089705,1760320243668,-500.0,0.00019288,2]
[391089706,1760320243677,-1497.05,0.00019326,2]
[391089707,1760320243687,-166.66,0.00019338,2]
[391089708,1760320243696,-500.0,0.00019342,2]
[391089709,1760320243706,-177.19896035,0.00019391,10]
[391089710,1760320243715,-500.0,0.00019397,2]
[391089711,1760320243724,-13587.63354509,0.000194,2]
[391089712,1760320243734,-1000.0,0.00019438,2]
[391089713,1760320243743,-500.0,0.00019452,2]
[391089714,1760320243753,-502.46693539,0.00019507,2]
[391089715,1760320243762,-423.98972246,0.00019534,2]
[391089716,1760320243772,-9435.92325538,0.00019543,2]
[391089717,1760320243782,-250.13474705,0.00019596,2]
[391089718,1760320243792,-284.65757699,0.00019646,2]
[391089719,1760320243801,-2683.0,0.00019681,2]
[391089720,1760320243811,-2000.0,0.000197,2]
[391089721,1760320243820,-180.35629968,0.00019725,2]
[391089722,1760320243830,-16664.89396778,0.00019743,2]
[391089723,1760320243840,-169.28683705,0.00019743,2]
[391089724,1760320243850,-5700.0,0.000199,7]
[391089725,1760320243859,-5763.02099009,0.0001998,2]
[391089726,1760320243869,-576.3540005,0.0001998,2]
[391089727,1760320243879,-4609.0,0.00020073,2]
[391089728,1760320243888,-1000.0,0.00020116,2]
[391089729,1760320243898,-4000.0,0.00020138,2]
[391089730,1760320243907,-373.07297731,0.00020157,2]
[391089731,1760320243917,-215.0738,0.00020159,2]
[391089732,1760320243926,-369.45,0.00020187,2]
[391089733,1760320243935,-1152.0,0.00020242,2]
[391089734,1760320243944,-166.26569034,0.00020349,2]
[391089735,1760320243954,-500.0,0.00020411,2]
[391089736,1760320243973,-154.77,0.00020502,2]
[391089737,1760320243982,-476.98843777,0.00020514,2]
[391089738,1760320243992,-186.63087553,0.00020783,2]
[391089739,1760320244005,-1000.0,0.00020795,2]
[391089740,1760320244015,-500.0,0.000208,6]
[391089741,1760320244024,-266.096305,0.000208,7]
[391089742,1760320244035,-1034.00027963,0.000209,30]
[391089743,1760320244045,-602.85,0.00021,8]
[391089744,1760320244055,-1497.05,0.00021083,2]
[391089745,1760320244064,-177.19896035,0.00021087,13]
[391089746,1760320244074,-9435.92325538,0.00021191,2]
[391089747,1760320244084,-16664.89396778,0.00021358,2]
[391089748,1760320244093,-152.873129,0.00021358,7]
[391089749,1760320244103,-155.703846,0.00021358,7]
[391089750,1760320244112,-151.0,0.00021358,7]
[391089751,1760320244121,-221.729681,0.00021358,7]
[391089752,1760320244130,-221.729681,0.00021358,7]
[391089753,1760320244140,-221.729681,0.00021358,7]
[391089754,1760320244149,-221.729681,0.00021358,7]
[391089755,1760320244159,-529.98715308,0.00021495,2]
[391089756,1760320244168,-287.77933643,0.00021526,2]
[391089757,1760320244179,-250.13474705,0.00021563,2]
[391089758,1760320244190,-7702.47,0.00021757,2]
[391089759,1760320244200,-3475.26,0.00021757,2]
[391089760,1760320244210,-6907.86,0.00021757,2]
[391089761,1760320244219,-6359.69,0.00021757,2]
[391089762,1760320244228,-5000.0,0.00021918,2]
[391089763,1760320244238,-4247.0,0.0002208,2]
[391089764,1760320244251,-166.26569034,0.00022165,2]
[391089765,1760320244260,-671.0,0.00022175,2]
[391089766,1760320244271,-185.87887338,0.00022389,4]
[391089767,1760320244282,-150.0,0.00022389,2]
[391089768,1760320244292,-253.69222494,0.00022389,4]
[391089769,1760320244303,-317.45564591,0.00022389,4]
[391089770,1760320244313,-150.0,0.00022389,2]
[391089771,1760320244326,-150.0,0.00022389,2]
[391089772,1760320244336,-172.96055888,0.00022389,4]
[391089773,1760320244346,-150.0,0.00022389,2]
[391089774,1760320244356,-150.0,0.00022389,2]
[391089775,1760320244368,-161.2482664,0.00022389,4]
[391089776,1760320244378,-150.0,0.00022389,2]
[391089777,1760320244390,-150.0,0.00022389,2]
[391089778,1760320244399,-150.0,0.00022389,2]
[391089779,1760320244410,-150.0,0.00022389,2]
[391089780,1760320244421,-150.0,0.00022389,2]
[391089781,1760320244431,-150.0,0.00022389,2]
[391089782,1760320244445,-150.0,0.00022389,2]
[391089783,1760320244455,-188.08181534,0.00022389,4]
[391089784,1760320244464,-161.48614885,0.00022389,2]
[391089785,1760320244474,-185.87887338,0.00022414,4]
[391089786,1760320244483,-253.69222494,0.00022414,4]
[391089787,1760320244494,-317.45564591,0.00022414,4]
[391089788,1760320244504,-172.96055888,0.00022414,4]
[391089789,1760320244514,-161.2482664,0.00022414,4]
[391089790,1760320244524,-188.08181534,0.00022414,4]
[391089791,1760320244537,-150.0,0.00022419,4]
[391089792,1760320244547,-150.0,0.00022419,4]
[391089793,1760320244557,-150.0,0.00022438,4]
[391089794,1760320244567,-185.87887338,0.00022439,4]
[391089795,1760320244577,-253.69222494,0.00022439,4]
[391089796,1760320244588,-317.45564591,0.00022439,4]
[391089797,1760320244599,-172.96055888,0.00022439,4]
[391089798,1760320244609,-161.2482664,0.00022439,4]
[391089799,1760320244620,-188.08181534,0.00022439,4]
[391089800,1760320244630,-150.0,0.0002244,4]
[391089801,1760320244644,-150.0,0.00022441,4]
[391089802,1760320244654,-150.0,0.00022448,4]
[391089803,1760320244664,-150.0,0.00022449,4]
[391089804,1760320244675,-150.0,0.00022453,4]
[391089805,1760320244685,-185.87887338,0.00022464,4]
[391089806,1760320244696,-253.69222494,0.00022464,4]
[391089807,1760320244706,-317.45564591,0.00022464,4]
[391089808,1760320244716,-172.96055888,0.00022464,4]
[391089809,1760320244727,-161.2482664,0.00022464,4]
[391089810,1760320244739,-188.08181534,0.00022464,4]
[391089811,1760320244749,-582.98586838,0.00022475,2]
[391089812,1760320244758,-150.0,0.00022478,4]
[391089813,1760320244768,-150.0,0.00022479,4]
[391089814,1760320244778,-150.0,0.00022487,4]
[391089815,1760320244788,-185.87887338,0.0002249,4]
[391089816,1760320244798,-253.69222494,0.0002249,4]
[391089817,1760320244807,-317.45564591,0.0002249,4]
[391089818,1760320244817,-172.96055888,0.0002249,4]
[391089819,1760320244827,-161.2482664,0.0002249,4]
[391089820,1760320244840,-188.08181534,0.0002249,4]
[391089821,1760320244850,-150.0,0.00022491,4]
[391089822,1760320244859,-150.0,0.00022493,4]
[391089823,1760320244869,-150.0,0.00022508,4]
[391089824,1760320244879,-150.0,0.00022509,4]
[391089825,1760320244888,-185.87887338,0.00022515,4]
[391089826,1760320244898,-253.69222494,0.00022515,4]
[391089827,1760320244908,-317.45564591,0.00022515,4]
[391089828,1760320244918,-172.96055888,0.00022515,4]
[391089829,1760320244927,-161.2482664,0.00022515,4]
[391089830,1760320244937,-188.08181534,0.00022515,4]
[391089831,1760320244947,-150.0,0.00022517,4]
[391089832,1760320244956,-150.0,0.00022535,4]
[391089833,1760320244966,-150.0,0.00022537,4]
[391089834,1760320244975,-150.0,0.00022539,4]
[391089835,1760320244985,-185.87887338,0.0002254,4]
[391089836,1760320244996,-253.69222494,0.0002254,4]
[391089837,1760320245008,-317.45564591,0.0002254,4]
[391089838,1760320245018,-172.96055888,0.0002254,4]
[391089839,1760320245030,-161.2482664,0.0002254,4]
[391089840,1760320245043,-188.08181534,0.0002254,4]
[391089841,1760320245053,-150.0,0.00022541,4]
[391089842,1760320245065,-150.0,0.00022545,4]
[391089843,1760320245074,-150.0,0.00022545,4]
[391089844,1760320245087,-1710.47987369,0.00022551,2]
[391089845,1760320245096,-185.87887338,0.00022565,4]
[391089846,1760320245106,-253.69222494,0.00022565,4]
[391089847,1760320245116,-317.45564591,0.00022565,4]
[391089848,1760320245126,-172.96055888,0.00022565,4]
[391089849,1760320245138,-161.2482664,0.00022565,4]
[391089850,1760320245148,-188.08181534,0.00022565,4]
[391089851,1760320245157,-150.0,0.00022567,4]
[391089852,1760320245167,-150.0,0.00022569,4]
[391089853,1760320245176,-153.0,0.00022574,2]
[391089854,1760320245186,-150.0,0.0002258,4]
[391089855,1760320245195,-150.0,0.00022584,4]
[391089856,1760320245205,-153.0,0.00022585,2]
[391089857,1760320245215,-185.87887338,0.0002259,4]
[391089858,1760320245224,-253.69222494,0.0002259,4]
[391089859,1760320245236,-317.45564591,0.0002259,4]
[391089860,1760320245246,-172.96055888,0.0002259,4]
[391089861,1760320245257,-161.2482664,0.0002259,4]
[391089862,1760320245268,-188.08181534,0.0002259,4]
[391089863,1760320245277,-150.0,0.00022592,4]
[391089864,1760320245289,-150.0,0.00022596,4]
[391089865,1760320245299,-150.0,0.00022596,4]
[391089866,1760320245309,-150.0,0.00022599,4]
[391089867,1760320245319,-185.87887338,0.00022615,4]
[391089868,1760320245330,-253.69222494,0.00022615,4]
[391089869,1760320245339,-317.45564591,0.00022615,4]
[391089870,1760320245349,-172.96055888,0.00022615,4]
[391089871,1760320245360,-161.2482664,0.00022615,4]
[391089872,1760320245369,-150.0,0.00022615,4]
[391089873,1760320245385,-188.08181534,0.00022615,4]
[391089874,1760320245395,-150.0,0.00022626,4]
[391089875,1760320245405,-150.0,0.00022629,4]
[391089876,1760320245414,-150.0,0.00022633,4]
[391089877,1760320245424,-150.0,0.00022638,4]
[391089878,1760320245434,-185.87887338,0.0002264,4]
[391089879,1760320245443,-253.69222494,0.0002264,4]
[391089880,1760320245453,-317.45564591,0.0002264,4]
[391089881,1760320245463,-172.96055888,0.0002264,4]
[391089882,1760320245473,-161.2482664,0.0002264,4]
[391089883,1760320245482,-188.08181534,0.0002264,4]
[391089884,1760320245492,-150.0,0.00022643,4]
[391089885,1760320245501,-150.0,0.00022644,4]
[391089886,1760320245510,-150.0,0.00022648,4]
[391089887,1760320245520,-150.0,0.00022656,4]
[391089888,1760320245531,-150.0,0.00022659,4]
[391089889,1760320245541,-185.87887338,0.00022665,4]
[391089890,1760320245551,-253.69222494,0.00022665,4]
[391089891,1760320245560,-317.45564591,0.00022665,4]
[391089892,1760320245569,-172.96055888,0.00022665,4]
[391089893,1760320245580,-161.2482664,0.00022665,4]
[391089894,1760320245591,-188.08181534,0.00022665,4]
[391089895,1760320245601,-150.0,0.00022682,4]
[391089896,1760320245611,-150.0,0.00022685,4]
[391089897,1760320245620,-150.0,0.00022689,4]
[391089898,1760320245630,-185.87887338,0.00022691,4]
[391089899,1760320245640,-253.69222494,0.00022691,4]
[391089900,1760320245649,-317.45564591,0.00022691,4]
[391089901,1760320245659,-172.96055888,0.00022691,4]
[391089902,1760320245669,-161.2482664,0.00022691,4]
[391089903,1760320245679,-188.08181534,0.00022691,4]
[391089904,1760320245688,-150.0,0.00022694,4]
[391089905,1760320245697,-150.0,0.000227,4]
[391089906,1760320245707,-150.0,0.000227,4]
[391089907,1760320245717,-150.0,0.00022708,4]
[391089908,1760320245727,-150.0,0.00022715,4]
[391089909,1760320245737,-185.87887338,0.00022716,4]
[391089911,1760320245747,-253.69222494,0.00022716,4]
[391089913,1760320245757,-317.45564591,0.00022716,4]
[391089915,1760320245767,-172.96055888,0.00022716,4]
[391089916,1760320245777,-161.2482664,0.00022716,4]
[391089917,1760320245788,-188.08181534,0.00022716,4]
[391089918,1760320245798,-150.0,0.00022719,4]
[391089919,1760320245810,-150.0,0.0002273,4]
[391089920,1760320245820,-185.87887338,0.00022741,4]
[391089921,1760320245830,-253.69222494,0.00022741,4]
[391089922,1760320245840,-317.45564591,0.00022741,4]
[391089929,1760320246166,-172.96055888,0.00022741,4]
[391089930,1760320246177,-161.2482664,0.00022741,4]
[391089931,1760320246186,-188.08181534,0.00022741,4]
[391089932,1760320246195,-150.0,0.00022744,4]
[391089933,1760320246205,-150.0,0.00022744,4]
[391089934,1760320246214,-150.0,0.00022749,4]
[391089935,1760320246223,-150.0,0.00022752,4]
[391089936,1760320246233,-185.87887338,0.00022766,4]
[391089937,1760320246242,-253.69222494,0.00022766,4]
[391089938,1760320246251,-317.45564591,0.00022766,4]
[391089939,1760320246261,-172.96055888,0.00022766,4]
[391089940,1760320246270,-161.2482664,0.00022766,4]
[391089941,1760320246280,-188.08181534,0.00022766,4]
[391089942,1760320246289,-150.0,0.00022772,4]
[391089943,1760320246298,-150.0,0.00022774,4]
[391089944,1760320246307,-150.0,0.00022779,4]
[391089945,1760320246316,-150.0,0.00022779,4]
[391089946,1760320246326,-177.19896035,0.00022783,16]
[391089947,1760320246335,-185.87887338,0.00022791,4]
[391089948,1760320246345,-253.69222494,0.00022791,4]
[391089949,1760320246354,-317.45564591,0.00022791,4]
[391089950,1760320246363,-172.96055888,0.00022791,4]
[391089951,1760320246373,-161.2482664,0.00022791,4]
[391089952,1760320246383,-188.08181534,0.00022791,4]
[391089954,1760320246392,-150.0,0.00022795,4]
[391089955,1760320246402,-150.0,0.00022804,4]
[391089956,1760320246411,-150.0,0.00022804,4]
[391089957,1760320246420,-150.0,0.00022804,4]
[391089958,1760320246429,-150.0,0.00022809,4]
[391089959,1760320246438,-185.87887338,0.00022816,4]
[391089960,1760320246448,-253.69222494,0.00022816,4]
[391089961,1760320246457,-317.45564591,0.00022816,4]
[391089962,1760320246466,-172.96055888,0.00022816,4]
[391089963,1760320246476,-161.2482664,0.00022816,4]
[391089964,1760320246486,-188.08181534,0.00022816,4]
[391089965,1760320246496,-150.0,0.00022828,4]
[391089966,1760320246505,-150.0,0.00022833,4]
[391089967,1760320246515,-150.0,0.00022836,4]
[391089968,1760320246524,-9435.92325538,0.00022838,2]
[391089969,1760320246536,-150.0,0.00022839,4]
[391089970,1760320246546,-185.87887338,0.00022841,4]
[391089971,1760320246556,-253.69222494,0.00022841,4]
[391089972,1760320246565,-317.45564591,0.00022841,4]
[391089973,1760320246576,-172.96055888,0.00022841,4]
[391089974,1760320246585,-161.2482664,0.00022841,4]
[391089975,1760320246594,-150.0,0.00022841,4]
[391089976,1760320246605,-188.08181534,0.00022841,4]
[391089977,1760320246614,-150.0,0.00022846,4]
[391089978,1760320246624,-150.0,0.00022855,4]
[391089979,1760320246634,-150.0,0.00022855,4]
[391089980,1760320246645,-150.0,0.00022863,4]
[391089981,1760320246656,-185.87887338,0.00022866,4]
[391089982,1760320246668,-253.69222494,0.00022866,4]
[391089983,1760320246680,-317.45564591,0.00022866,4]
[391089984,1760320246692,-172.96055888,0.00022866,4]
[391089985,1760320246702,-161.2482664,0.00022866,4]
[391089986,1760320246713,-188.08181534,0.00022866,4]
[391089987,1760320246724,-150.0,0.00022869,4]
[391089988,1760320246735,-150.0,0.00022877,4]
[391089989,1760320246746,-150.0,0.00022887,4]
[391089990,1760320246756,-150.0,0.00022887,4]
[391089991,1760320246766,-185.87887338,0.00022892,4]
[391089992,1760320246776,-253.69222494,0.00022892,4]
[391089993,1760320246789,-317.45564591,0.00022892,4]
[391089994,1760320246800,-172.96055888,0.00022892,4]
[391089995,1760320246809,-161.2482664,0.00022892,4]
[391089996,1760320246820,-188.08181534,0.00022892,4]
[391089997,1760320246830,-150.0,0.00022892,4]
[391089998,1760320246840,-150.0,0.00022897,4]
[391089999,1760320246850,-208.75524468,0.00022898,2]
[391090000,1760320246859,-150.0,0.00022899,4]
[391090001,1760320246869,-150.0,0.00022899,4]
[391090002,1760320246879,-150.0,0.00022907,4]
[391090003,1760320246889,-185.87887338,0.00022917,4]
[391090004,1760320246898,-253.69222494,0.00022917,4]
[391090005,1760320246909,-317.45564591,0.00022917,4]
[391090006,1760320246920,-172.96055888,0.00022917,4]
[391090007,1760320246932,-161.2482664,0.00022917,4]
[391090008,1760320246943,-188.08181534,0.00022917,4]
[391090009,1760320246954,-150.0,0.00022922,4]
[391090010,1760320246965,-150.0,0.00022926,4]
[391090011,1760320246974,-150.0,0.00022929,4]
[391090012,1760320246984,-185.87887338,0.00022942,4]
[391090013,1760320246994,-253.69222494,0.00022942,4]
[391090014,1760320247008,-317.45564591,0.00022942,4]
[391090015,1760320247018,-172.96055888,0.00022942,4]
[391090016,1760320247027,-161.2482664,0.00022942,4]
[391090017,1760320247039,-188.08181534,0.00022942,4]
[391090018,1760320247049,-150.0,0.00022947,4]
[391090019,1760320247059,-150.0,0.00022952,4]
[391090020,1760320247068,-150.0,0.00022959,4]
[391090021,1760320247078,-150.0,0.00022959,4]
[391090022,1760320247089,-150.0,0.00022963,4]
[391090023,1760320247099,-185.87887338,0.00022967,4]
[391090024,1760320247109,-253.69222494,0.00022967,4]
[391090025,1760320247118,-317.45564591,0.00022967,4]
[391090026,1760320247127,-172.96055888,0.00022967,4]
[391090027,1760320247137,-161.2482664,0.00022967,4]
[391090028,1760320247146,-188.08181534,0.00022967,4]
[391090029,1760320247156,-16664.89396778,0.00022972,2]
[391090030,1760320247166,-150.0,0.00022974,4]
[391090031,1760320247175,-150.0,0.00022981,4]
[391090032,1760320247184,-150.0,0.00022988,4]
[391090033,1760320247193,-185.87887338,0.00022992,4]
[391090034,1760320247202,-253.69222494,0.00022992,4]
[391090035,1760320247211,-317.45564591,0.00022992,4]
[391090036,1760320247221,-172.96055888,0.00022992,4]
[391090037,1760320247233,-161.2482664,0.00022992,4]
[391090038,1760320247244,-188.08181534,0.00022992,4]
[391090039,1760320247254,-150.0,0.00022998,4]
[391090040,1760320247264,-10000.0,0.00023,2]
[391090041,1760320247275,-150.0,0.00023011,4]
[391090042,1760320247286,-150.0,0.00023011,4]
[391090043,1760320247296,-150.0,0.00023011,4]
[391090044,1760320247305,-185.87887338,0.00023017,4]
[391090045,1760320247315,-253.69222494,0.00023017,4]
[391090046,1760320247324,-317.45564591,0.00023017,4]
[391090047,1760320247334,-172.96055888,0.00023017,4]
[391090048,1760320247343,-161.2482664,0.00023017,4]
[391090049,1760320247354,-188.08181534,0.00023017,4]
[391090050,1760320247364,-150.0,0.00023018,4]
[391090051,1760320247374,-150.0,0.00023023,4]
[391090052,1760320247385,-2472.356,0.00023026,2]
[391090053,1760320247396,-150.0,0.00023027,4]
[391090054,1760320247406,-150.0,0.00023041,4]
[391090055,1760320247415,-185.87887338,0.00023042,4]
[391090056,1760320247425,-253.69222494,0.00023042,4]
[391090057,1760320247434,-317.45564591,0.00023042,4]
[391090058,1760320247445,-172.96055888,0.00023042,4]
[391090059,1760320247456,-161.2482664,0.00023042,4]
[391090060,1760320247466,-188.08181534,0.00023042,4]
[391090061,1760320247477,-150.0,0.00023048,4]
[391090062,1760320247488,-150.0,0.00023049,4]
[391090063,1760320247498,-150.0,0.00023063,4]
[391090064,1760320247507,-185.87887338,0.00023067,4]
[391090065,1760320247516,-253.69222494,0.00023067,4]
[391090066,1760320247526,-317.45564591,0.00023067,4]
[391090067,1760320247538,-172.96055888,0.00023067,4]
[391090068,1760320247547,-161.2482664,0.00023067,4]
[391090069,1760320247556,-150.0,0.00023067,4]
[391090070,1760320247566,-188.08181534,0.00023067,4]
[391090071,1760320247575,-150.0,0.0002307,4]
[391090072,1760320247585,-150.0,0.00023072,4]
[391090073,1760320247595,-150.0,0.00023078,4]
[391090074,1760320247604,-150.0,0.00023091,4]
[391090075,1760320247613,-185.87887338,0.00023093,4]
[391090076,1760320247623,-253.69222494,0.00023093,4]
[391090077,1760320247633,-317.45564591,0.00023093,4]
[391090078,1760320247643,-172.96055888,0.00023093,4]
[391090079,1760320247655,-161.2482664,0.00023093,4]
[391090080,1760320247664,-188.08181534,0.00023093,4]
[391090081,1760320247674,-150.0,0.000231,4]
[391090082,1760320247683,-150.0,0.000231,4]
[391090083,1760320247693,-150.0,0.00023108,4]
[391090084,1760320247702,-150.0,0.00023115,4]
[391090085,1760320247711,-185.87887338,0.00023118,4]
[391090086,1760320247720,-253.69222494,0.00023118,4]
[391090087,1760320247730,-317.45564591,0.00023118,4]
[391090088,1760320247740,-172.96055888,0.00023118,4]
[391090089,1760320247749,-161.2482664,0.00023118,4]
[391090090,1760320247758,-188.08181534,0.00023118,4]
[391090091,1760320247768,-150.0,0.00023121,4]
[391090092,1760320247778,-150.0,0.00023129,4]
[391090093,1760320247788,-150.0,0.00023135,4]
[391090094,1760320247798,-150.0,0.00023138,4]
[391090095,1760320247808,-185.87887338,0.00023143,4]
[391090096,1760320247817,-253.69222494,0.00023143,4]
[391090097,1760320247826,-317.45564591,0.00023143,4]
[391090098,1760320247836,-172.96055888,0.00023143,4]
[391090099,1760320247845,-161.2482664,0.00023143,4]
[391090100,1760320247854,-188.08181534,0.00023143,4]
[391090101,1760320247864,-150.0,0.00023151,4]
[391090102,1760320247875,-150.0,0.00023154,4]
[391090103,1760320247885,-150.0,0.00023159,4]
[391090104,1760320247894,-150.0,0.00023166,4]
[391090105,1760320247904,-150.0,0.00023166,4]
[391090106,1760320247915,-185.87887338,0.00023168,4]
[391090107,1760320247924,-253.69222494,0.00023168,4]
[391090108,1760320247933,-317.45564591,0.00023168,4]
[391090109,1760320247943,-172.96055888,0.00023168,4]
[391090110,1760320247953,-161.2482664,0.00023168,4]
[391090111,1760320247963,-188.08181534,0.00023168,4]
[391090112,1760320247972,-150.0,0.00023168,4]
[391090113,1760320247982,-150.0,0.00023169,4]
[391090114,1760320247993,-150.0,0.00023189,4]
[391090115,1760320248005,-150.0,0.00023192,2]
[391090116,1760320248022,-185.87887338,0.00023193,4]
[391090117,1760320248033,-253.69222494,0.00023193,4]
[391090118,1760320248043,-317.45564591,0.00023193,4]
[391090119,1760320248052,-172.96055888,0.00023193,4]
[391090120,1760320248062,-161.2482664,0.00023193,4]
[391090121,1760320248073,-188.08181534,0.00023193,4]
[391090122,1760320248082,-150.0,0.00023198,4]
[391090123,1760320248093,-150.0,0.00023201,4]
[391090124,1760320248103,-185.87887338,0.00023218,4]
[391090125,1760320248114,-253.69222494,0.00023218,4]
[391090126,1760320248125,-317.45564591,0.00023218,4]
[391090127,1760320248135,-150.0,0.00023218,4]
[391090128,1760320248147,-172.96055888,0.00023218,4]
[391090129,1760320248156,-150.0,0.00023218,4]
[391090130,1760320248165,-161.2482664,0.00023218,4]
[391090131,1760320248175,-150.0,0.00023218,4]
[391090132,1760320248185,-150.0,0.00023218,4]
[391090133,1760320248194,-150.0,0.00023218,4]
[391090134,1760320248203,-150.0,0.00023218,4]
[391090135,1760320248215,-188.08181534,0.00023218,4]
[391090136,1760320248225,-150.0,0.00023228,4]
[391090137,1760320248235,-185.87887338,0.00023243,4]
[391090138,1760320248246,-253.69222494,0.00023243,4]
[391090139,1760320248255,-317.45564591,0.00023243,4]
[391090140,1760320248264,-172.96055888,0.00023243,4]
[391090141,1760320248274,-161.2482664,0.00023243,4]
[391090142,1760320248284,-188.08181534,0.00023243,4]
[391090143,1760320248294,-150.0,0.00023248,4]
[391090144,1760320248304,-150.0,0.00023252,4]
[391090145,1760320248313,-150.0,0.00023258,4]
[391090146,1760320248322,-150.0,0.00023267,4]
[391090147,1760320248331,-185.87887338,0.00023269,4]
[391090148,1760320248341,-253.69222494,0.00023269,4]
[391090149,1760320248350,-317.45564591,0.00023269,4]
[391090150,1760320248359,-172.96055888,0.00023269,4]
[391090151,1760320248368,-161.2482664,0.00023269,4]
[391090152,1760320248377,-188.08181534,0.00023269,4]
[391090153,1760320248386,-150.0,0.0002327,4]
[391090154,1760320248396,-150.0,0.00023277,4]
[391090155,1760320248405,-150.0,0.00023282,4]
[391090156,1760320248415,-150.0,0.00023288,4]
[391090157,1760320248424,-185.87887338,0.00023294,4]
[391090158,1760320248433,-253.69222494,0.00023294,4]
[391090159,1760320248442,-317.45564591,0.00023294,4]
[391090160,1760320248452,-172.96055888,0.00023294,4]
[391090161,1760320248461,-161.2482664,0.00023294,4]
[391090162,1760320248470,-150.0,0.00023294,4]
[391090163,1760320248479,-188.08181534,0.00023294,4]
[391090164,1760320248488,-150.0,0.00023303,4]
[391090165,1760320248498,-150.0,0.00023307,4]
[391090166,1760320248507,-150.0,0.00023316,4]
[391090167,1760320248516,-150.0,0.00023318,4]
[391090168,1760320248526,-185.87887338,0.00023319,4]
[391090169,1760320248539,-253.69222494,0.00023319,4]
[391090170,1760320248548,-317.45564591,0.00023319,4]
[391090171,1760320248558,-172.96055888,0.00023319,4]
[391090172,1760320248645,-161.2482664,0.00023319,4]
[391090173,1760320248654,-188.08181534,0.00023319,4]
[391090174,1760320248663,-150.0,0.00023322,4]
[391090175,1760320248672,-150.0,0.00023322,4]
[391090176,1760320248682,-150.0,0.00023337,4]
[391090177,1760320248691,-185.87887338,0.00023344,4]
[391090178,1760320248701,-253.69222494,0.00023344,4]
[391090179,1760320248713,-317.45564591,0.00023344,4]
[391090180,1760320248722,-172.96055888,0.00023344,4]
[391090181,1760320248731,-161.2482664,0.00023344,4]
[391090182,1760320248741,-188.08181534,0.00023344,4]
[391090183,1760320248751,-150.0,0.00023346,4]
[391090184,1760320248760,-150.0,0.00023348,4]
[391090185,1760320248770,-150.0,0.00023354,4]
[391090186,1760320248784,-150.0,0.00023365,4]
[391090187,1760320248793,-150.0,0.00023366,4]
[391090188,1760320248803,-185.87887338,0.00023369,4]
[391090189,1760320248812,-253.69222494,0.00023369,4]
[391090190,1760320248823,-317.45564591,0.00023369,4]
[391090191,1760320248833,-172.96055888,0.00023369,4]
[391090192,1760320248843,-161.2482664,0.00023369,4]
[391090193,1760320248852,-188.08181534,0.00023369,4]
[391090194,1760320248861,-150.0,0.00023374,4]
[391090195,1760320248871,-150.0,0.00023378,4]
[391090196,1760320248880,-150.0,0.00023384,4]
[391090197,1760320248889,-150.0,0.00023384,4]
[391090198,1760320248899,-185.87887338,0.00023394,4]
[391090199,1760320248908,-253.69222494,0.00023394,4]
[391090200,1760320248917,-317.45564591,0.00023394,4]
[391090201,1760320248927,-172.96055888,0.00023394,4]
[391090202,1760320248936,-161.2482664,0.00023394,4]
[391090203,1760320248945,-188.08181534,0.00023394,4]